[Event "3rd Sunway Formentera-A 2024"]
[Site "Formentera"]
[Date "2024.04.12"]
[Round "4.6"]
[White "Prraneeth Vuppala"]
[Black "Adarsh Tripathi"]
[Result "1/2-1/2"]
[ECO "B45"]
[WhiteElo "2499"]
[BlackElo "2304"]
[Annotator "RC"]
[PlyCount "128"]
[EventDate "2024.04.03"]
[EventType "swiss"]
[EventCountry "ESP"]
[SourceTitle "playchess.com"]
[Source "ChessBase"]
[SourceQuality "1"]
[TimeControl "40/5400+30:1800+30"]

1. e4 {[%emt 0:00:54]} c5 {[%emt 0:00:05]} 2. Nf3 {[%emt 0:00:15]} e6 {[%emt 0:00:04]} 3. d4 {[%emt 0:00:20]} cxd4 {[%emt 0:00:04]} 4. Nxd4 {[%emt 0:00:08]} Nf6 {[%emt 0:00:05]} 5. Nc3 {[%emt 0:00:22]} Nc6 {[%emt 0:00:05]} 6. Nxc6 {[%emt 0:00:40]} bxc6 {[%emt 0:00:06]} 7. e5 {[%emt 0:00:07]} Nd5 {[%emt 0:00:05]} 8. Ne4 {[%emt 0:00:10]} Qc7 {[%emt 0:00:05]} 9. f4 {[%emt 0:00:17]} Qb6 {[%emt 0:00:06]} 10. c4 {[%emt 0:00:37]} Bb4+ {[%emt 0:00:06]} 11. Ke2 {[%emt 0:00:33]} f5 {[%emt 0:00:06]} 12. exf6 {[%emt 0:03:44]} Nxf6 {[%emt 0:00:08]} 13. Be3 {[%emt 0:00:22]} Qd8 {[%emt 0:00:06]} 14. Nd6+ {[%emt 0:00:22]} Bxd6 {[%emt 0:00:07]} 15. Qxd6 {[%emt 0:00:07]} Bb7 {[%emt 0:00:06]} 16. Kd1 {[%emt 0:04:22]} Rc8 {[%emt 0:01:32]} 17. c5 {[%emt 0:01:34]} Qa5 {[%emt 0:05:54]} 18. Bc4 {[%emt 0:18:33]} Ba6 {[%emt 0:09:55]} 19. Bd2 {[%emt 0:22:39]} Qa4+ {[%emt 0:00:05]} 20. b3 {[%emt 0:02:20]} Qa3 {[%emt 0:00:08]} 21. Bxa6 {[%emt 0:01:34]} Qxa6 {[%emt 0:00:11]} 22. Re1 {[%emt 0:00:11]} Kf7 {[%emt 0:01:53]} 23. Bc3 {[%emt 0:03:07]} Rcd8 {[%emt 0:02:00]} 24. Bxf6 {[%emt 0:07:09]} gxf6 {[%emt 0:01:45]} 25. Kc2 {[%emt 0:00:21]} Rhg8 {[%emt 0:00:05]} 26. g3 {[%emt 0:00:09]} Qb7 {[%emt 0:01:06]} 27. Rad1 {[%emt 0:02:00]} f5 {[%emt 0:06:53]} 28. Re5 {[%emt 0:02:15]} a5 {[%emt 0:00:30]} 29. Rde1 {[%emt 0:01:53]} Rde8 {[%emt 0:01:32]} 30. Qd1 {[%emt 0:03:04]} Re7 {[%emt 0:04:39]} 31. Qe2 {[%emt 0:03:52]} Kf6 {[%emt 0:05:43]} 32. Rxf5+ {[%emt 0:17:20]} Kxf5 {[%emt 0:01:35]} 33. Qe5+ {[%emt 0:00:01]} Kg6 {[%emt 0:00:07]} 34. f5+ {[%emt 0:00:03]} Kf7 {[%emt 0:00:41]} 35. f6 {[%emt 0:00:05]} Ke8 {[%emt 0:22:52]} 36. fxe7 {[%emt 0:00:29]} Kxe7 {[%emt 0:00:05]} 37. Rf1 {[%emt 0:01:52]} Kd8 {[%emt 0:00:08]} 38. Rf7 {[%emt 0:00:36]} Kc8 {[%emt 0:00:17]} 39. Rxh7 {[%emt 0:02:05]} Rf8 {[%emt 0:01:36]} 40. Rh8 {[%emt 0:00:00]} Rxh8 {[%emt 0:00:00]} 41. Qxh8+ {[%emt 0:00:38]} Kc7 {[%emt 0:00:19]} 42. Qc3 {[%emt 0:01:13]} Qa8 {[%emt 0:06:21]} 43. h4 {[%emt 0:02:07]} a4 {[%emt 0:00:30]} 44. h5 {[%emt 0:02:28]} axb3+ {[%emt 0:00:06]} 45. axb3 {[%emt 0:03:56]} Qf8 {[%emt 0:00:07]} 46. Kb2 {[%emt 0:01:33]} Qf2+ {[%emt 0:03:40]} 47. Ka3 {[%emt 0:00:40]} Qe2 {[%emt 0:06:41]} 48. h6 {[%emt 0:18:49]} Qa6+ {[%emt 0:00:05]} 49. Kb2 {[%emt 0:00:02]} Qe2+ {[%emt 0:00:06]} 50. Qc2 {[%emt 0:00:21]} Qe5+ {[%emt 0:00:06]} 51. Qc3 {[%emt 0:00:44]} Qe2+ {[%emt 0:00:06]} 52. Qc2 {[%emt 0:00:02]} Qe5+ {[%emt 0:00:04]} 53. Ka2 {[%emt 0:00:02]} Qxg3 {[%emt 0:00:08]} 54. h7 {[%emt 0:00:22]} Qh4 {[%emt 0:00:15]} 55. Ka3 {[%emt 0:02:07]} Qh5 {[%emt 0:01:58]} 56. b4 {[%emt 0:02:47]} Qh3+ {[%emt 0:03:32]} 57. Ka4 {[%emt 0:00:03]} Kb7 {[%emt 0:02:50]} 58. Qg6 {[%emt 0:01:29]} Qc3 {[%emt 0:04:52]} 59. Qb1 {[%emt 0:02:49]} Kc7 {[%emt 0:06:55]} 60. Qb3 {[%emt 0:00:56]} Qa1+ {[%emt 0:02:21]} 61. Qa3 {[%emt 0:00:01]} Qd1+ {[%emt 0:00:52]} 62. Ka5 {[%emt 0:00:04]} Qe2 {[%emt 0:00:38]} 63. Qa4 {[%emt 0:01:19]} Kb7 {[%emt 0:00:08]} 64. b5 {[%emt 0:00:05]} Qd2+ {[%emt 0:00:15]} 1/2-1/2

[Event "3rd Sunway Formentera-A 2024"]
[Site "Formentera"]
[Date "2024.04.12"]
[Round "4.7"]
[White "Valuet, Bertrand"]
[Black "Prado, Alexandra"]
[Result "1-0"]
[ECO "E90"]
[WhiteElo "2281"]
[BlackElo "1839"]
[Annotator "RC"]
[PlyCount "87"]
[EventDate "2024.04.03"]
[EventType "swiss"]
[EventCountry "ESP"]
[SourceTitle "playchess.com"]
[Source "ChessBase"]
[SourceQuality "1"]
[TimeControl "40/5400+30:1800+30"]

1. d4 {[%emt 0:00:03]} Nf6 {[%emt 0:00:54]} 2. c4 {[%emt 0:00:03]} g6 {[%emt 0:00:54]} 3. Nc3 {[%emt 0:00:12]} Bg7 {[%emt 0:00:04]} 4. e4 {[%emt 0:00:08]} d6 {[%emt 0:00:06]} 5. Nf3 {[%emt 0:00:29]} O-O {[%emt 0:00:48]} 6. h3 {[%emt 0:00:04]} e5 {[%emt 0:06:54]} 7. d5 {[%emt 0:00:09]} Nbd7 {[%emt 0:01:43]} 8. Bd3 {[%emt 0:00:11]} a5 {[%emt 0:03:05]} 9. Be3 {[%emt 0:02:18]} Nc5 {[%emt 0:09:29]} 10. Bc2 {[%emt 0:00:07]} b6 {[%emt 0:06:48]} 11. a3 {[%emt 0:01:13]} Qe7 {[%emt 0:06:59]} 12. O-O {[%emt 0:15:41]} Nh5 {[%emt 0:01:37]} 13. b4 {[%emt 0:01:20]} axb4 {[%emt 0:03:41]} 14. axb4 {[%emt 0:00:04]} Rxa1 {[%emt 0:00:47]} 15. Qxa1 {[%emt 0:00:02]} Na6 {[%emt 0:01:24]} 16. Qa3 {[%emt 0:00:59]} f5 {[%emt 0:02:21]} 17. Re1 {[%emt 0:03:13]} f4 {[%emt 0:05:17]} 18. Bd2 {[%emt 0:09:28]} g5 {[%emt 0:01:18]} 19. Bd3 {[%emt 0:00:18]} Nb8 {[%emt 0:00:23]} 20. Be2 {[%emt 0:00:55]} g4 {[%emt 0:03:39]} 21. hxg4 {[%emt 0:02:55]} Bxg4 {[%emt 0:00:36]} 22. Nh2 {[%emt 0:00:18]} Bxe2 {[%emt 0:13:35]} 23. Nxe2 {[%emt 0:00:14]} Nd7 {[%emt 0:02:09]} 24. Qh3 {[%emt 0:03:05]} Nhf6 {[%emt 0:07:35]} 25. Nc3 {[%emt 0:04:12]} Ra8 {[%emt 0:00:30]} 26. Nb5 {[%emt 0:07:32]} Nf8 {[%emt 0:01:10]} 27. Qb3 {[%emt 0:03:23]} Ng6 {[%emt 0:02:16]} 28. c5 {[%emt 0:02:31]} bxc5 {[%emt 0:04:16]} 29. bxc5 {[%emt 0:00:12]} Rb8 {[%emt 0:04:54]} 30. Qc4 {[%emt 0:01:43]} Qd7 {[%emt 0:01:51]} 31. c6 {[%emt 0:02:11]} Qf7 {[%emt 0:01:02]} 32. Nf3 {[%emt 0:01:11]} h6 {[%emt 0:01:01]} 33. Ba5 {[%emt 0:01:20]} Ne8 {[%emt 0:00:17]} 34. Bxc7 {[%emt 0:01:41]} Rxb5 {[%emt 0:04:23]} 35. Qxb5 {[%emt 0:00:07]} Nxc7 {[%emt 0:00:06]} 36. Qb8+ {[%emt 0:01:47]} Kh7 {[%emt 0:02:09]} 37. Ra1 {[%emt 0:00:38]} Ne8 {[%emt 0:00:53]} 38. Ra7 {[%emt 0:04:54]} Ne7 {[%emt 0:01:37]} 39. Rb7 {[%emt 0:05:37]} Bf6 {[%emt 0:00:53]} 40. Qd8 {[%emt 0:00:00]} Kg6 {[%emt 0:00:00]} 41. c7 {[%emt 0:09:53]} Nxc7 {[%emt 0:15:05]} 42. Qxc7 {[%emt 0:01:10]} Qe8 {[%emt 0:05:43]} 43. Qxd6 {[%emt 0:00:55]} Nc8 {[%emt 0:01:46]} 44. Qc7 {[%emt 0:00:16]} 1-0

[Event "3rd Sunway Formentera-A 2024"]
[Site "Formentera"]
[Date "2024.04.12"]
[Round "4.8"]
[White "Schulman, Julia"]
[Black "Zubizarreta Landera, Amets"]
[Result "0-1"]
[ECO "B68"]
[WhiteElo "1732"]
[BlackElo "2110"]
[Annotator "TA"]
[PlyCount "104"]
[EventDate "2024.04.03"]
[EventType "swiss"]
[EventCountry "ESP"]
[SourceTitle "playchess.com"]
[Source "ChessBase"]
[SourceQuality "1"]
[TimeControl "40/5400+30:1800+30"]

{[%evp 18,104,50,0,0,-11,-18,0,-7,-20,0,-25,0,-39,0,-15,0,-11,238,246,244,237,229,215,209,187,210,205,278,234,440,225,399,412,413,321,768,386,356,205,482,460,402,444,419,133,131,133,124,65,69,45,46,-69,-8,-12,-12,-418,-458,-443,-431,-495,-465,-536,-443,-844,-642,-873,-834,-1335,-1075,-1592,-1568,-1913,-1943,-3477,-3669,-5795,-5791,-2118,-1202,-29984,-29985,-29985,-29986,-29986,-29986,-29988,-29989]} 1. e4 {[%emt 0:00:02]} c5 {[%emt 0:00:08]} 2. Nf3 {[%emt 0:00:07]} d6 {[%emt 0:00:12]} 3. d4 {[%emt 0:00:10]} cxd4 {[%emt 0:00:05]} 4. Nxd4 {[%emt 0:00:03]} Nf6 {[%emt 0:00:04]} 5. Nc3 {[%emt 0:00:21]} Nc6 {[%emt 0:00:06]} 6. Bg5 {[%emt 0:00:38]} e6 {[%emt 0:00:16]} 7. Qd2 {[%emt 0:01:47]} a6 {[%emt 0:00:04]} 8. O-O-O {[%emt 0:08:59]} Bd7 {[%emt 0:00:13]} 9. f4 {[%emt 0:08:52][%cal Bf2f4,Bf4f5][%mdl 32]} Be7 {[%emt 0:01:07]} 10. Bxf6 {[%emt 0:03:29]} (10. Nf3 $14) 10... Bxf6 $11 {[%emt 0:10:58]} 11. Nf3 {[%emt 0:20:17]} Be7 $1 {[%emt 0:00:16]} 12. Kb1 {[%emt 0:03:48]} b5 {[%emt 0:04:01] The position is equal.} 13. e5 {[%emt 0:04:43]} d5 {[%emt 0:07:20]} 14. f5 {[%emt 0:04:04]} Qb6 {[%emt 0:04:57]} 15. g4 {[%emt 0:15:03]} O-O-O {[%emt 0:01:58]} (15... exf5 $2 16. Nxd5 (16. Qxd5 $2 Be6 $19) 16... Qa7 17. Qf4 $18) (15... b4 $5 16. Ne2 exf5 17. gxf5 Bxf5 $11) 16. Bd3 {[%emt 0:01:28]} Bb4 {[%emt 0:14:17]} 17. a3 {[%emt 0:02:26]} Ba5 {[%emt 0:03:11]} (17... Be7 $11 {and Black is okay.}) 18. b4 $18 {[%emt 0:03:14]} Bxb4 {[%emt 0:01:28]} 19. axb4 {[%emt 0:00:10]} Nxb4 {[%emt 0:49:19]} 20. Na2 {[%emt 0:00:41]} Nc6 {[%emt 0:00:00]} 21. c3 {[%emt 0:03:08]} Kb7 {[%emt 0:00:00]} 22. Nb4 {[%emt 0:02:19]} Na5 {[%emt 0:00:00]} 23. Nd4 {[%emt 0:00:46] Inhibits Nb3.} Ka7 $2 {[%emt 0:00:00]} (23... Rc8 24. h4 Rc5) 24. Qb2 {[%emt 0:00:59]} (24. fxe6 $142 fxe6 25. Kb2) 24... Rb8 $2 {[%emt 0:00:00]} (24... Rc8 {keeps fighting.} 25. fxe6 Bxe6) 25. Kc2 {[%emt 0:02:39] Strongly threatening Ra1.} Rhc8 {[%emt 0:00:00]} 26. Kd2 {[%emt 0:00:53]} Nb7 $2 {[%emt 0:00:00]} (26... Ra8 27. Ra1 Kb7 28. fxe6 Bxe6) 27. Ra1 {[%emt 0:02:27]} a5 {[%emt 0:00:00]} 28. Ra2 {[%emt 0:01:16]} (28. Rhf1 $142 {fxe6 would now be deadly.} Rc7 29. Nbc2 exf5 30. Na3 (30. Bxb5 Rc5 $18) (30. Nxb5+ Bxb5 31. Qxb5 Qxb5 $18) (30. gxf5 Rc5 $18)) 28... Rc7 $2 {[%emt 0:00:00]} (28... Nc5 29. Qa1 a4) 29. Nbc2 {[%emt 0:01:25]} Nc5 {[%emt 0:00:00]} 30. Rha1 {[%emt 0:01:15]} Na4 {[%emt 0:00:00] [#]} 31. Rxa4 {[%emt 0:01:09]} bxa4 $16 {[%emt 0:00:00]} 32. Qxb6+ {[%emt 0:00:18]} Rxb6 {[%emt 0:00:00]} 33. Na3 {[%emt 0:00:37] Excellent horsemanship.} ({White should play} 33. Ne3 $16) 33... Rb2+ {[%emt 0:00:00]} 34. Bc2 {[%emt 0:01:18]} Rcb7 {[%emt 0:00:00]} 35. Rb1 {[%emt 0:00:58]} (35. Nb1 $14) 35... Ra2 {[%emt 0:01:35]} (35... Rxb1 $1 $15 36. Nxb1 exf5 37. gxf5 Kb6) 36. Rxb7+ {[%emt 0:00:46]} Kxb7 {[%emt 0:00:00]} 37. Nab5 {[%emt 0:01:06][%mdl 8192] White is now going downhill.} (37. Nb1 $11) 37... Bxb5 $19 {[%emt 0:00:40]} 38. Nxb5 {[%emt 0:00:04]} a3 {[%emt 0:00:01]} 39. Nd6+ {[%emt 0:02:41]} Kc7 {[%emt 0:00:18]} 40. Nxf7 {[%emt 0:00:00]} Ra1 {[%emt 0:00:00]} 41. Bb3 {[%emt 0:27:27]} (41. Ng5 $142 exf5 42. gxf5) 41... a2 {[%emt 0:03:30]} 42. Bxa2 {[%emt 0:01:04]} Rxa2+ {[%emt 0:00:01][%mdl 4096] Endgame. KR-KN} 43. Kc1 {[%emt 0:02:00]} exf5 {[%emt 0:02:35]} 44. gxf5 {[%emt 0:00:15]} Rxh2 {[%emt 0:01:17]} 45. Nd6 {[%emt 0:02:19]} Kd7 {[%emt 0:00:14]} 46. Nb5 {[%emt 0:00:17]} Rf2 {[%emt 0:01:14]} 47. e6+ {[%emt 0:01:19]} Ke7 {[%emt 0:01:10][%cal Oa5a4] And now ...a4! would win.} 48. Nd4 {[%emt 0:00:37]} Rf4 {[%emt 0:00:04][%cal Of4d4] ( -> ...Rxd4!)} 49. Kd2 {[%emt 0:00:48] [#]} Rxd4+ $1 {[%emt 0:00:18] Black mates.} 50. cxd4 {[%emt 0:00:10]} h5 {[%emt 0:00:26]} 51. Ke3 {[%emt 0:00:06]} a4 {[%emt 0:00:01]} 52. Kf4 {[%emt 0:00:08]} a3 {[%emt 0:00:03] Weighted Error Value: White=1.25/Black=0.58.  Loses game:     	White=1     	Black=1      Missed win:     	White=1     	---        Mistake:       	White=4     	Black=5      Inaccurate:     	White=3     	Black=2      OK:         	White=6     	Black=6      Best:        	White=2     	Black=2      Strong:       	---       	Black=1} 0-1

[Event "3rd Sunway Formentera-A 2024"]
[Site "Formentera"]
[Date "2024.04.12"]
[Round "4.9"]
[White "Mekhane, Adam"]
[Black "Alsina Leal, Daniel"]
[Result "1/2-1/2"]
[ECO "B49"]
[WhiteElo "2307"]
[BlackElo "2497"]
[Annotator "TA"]
[PlyCount "66"]
[EventDate "2024.04.03"]
[EventType "swiss"]
[EventCountry "ESP"]
[SourceTitle "playchess.com"]
[Source "ChessBase"]
[SourceQuality "1"]
[TimeControl "40/5400+30:1800+30"]

{[%evp 16,66,35,26,32,24,19,16,25,24,24,26,19,30,31,21,30,27,27,31,22,23,38,0,0,0,19,26,22,22,14,18,22,20,19,15,30,19,15,1,1,1,14,21,31,36,32,24,87,0,17,0,86]} 1. e4 {[%emt 0:00:19]} c5 {[%emt 0:00:20]} 2. Nf3 {[%emt 0:00:21]} e6 {[%emt 0:00:12]} 3. d4 {[%emt 0:02:17]} cxd4 {[%emt 0:00:06]} 4. Nxd4 {[%emt 0:00:06]} Nc6 {[%emt 0:00:12]} 5. Nc3 {[%emt 0:00:46]} Qc7 {[%emt 0:00:08]} 6. Be3 {[%emt 0:00:50]} a6 {[%emt 0:00:15]} 7. a3 {[%emt 0:01:03]} b5 {[%emt 0:00:29]} 8. Nxc6 {[%emt 0:02:04]} Qxc6 {[%emt 0:00:08]} 9. Be2 {[%emt 0:00:13]} Bb7 {[%emt 0:00:38]} 10. O-O {[%emt 0:00:10]} Bd6 {[%emt 0:01:13][%cal Bf8d6,Bd6b8,Bb8e5][%mdl 32]} 11. Qd4 {[%emt 0:28:06]} Nf6 {[%emt 0:02:25][%cal Oc6c7]} 12. Rfd1 {[%emt 0:01:38]} Bb8 {[%emt 0:00:57]} 13. a4 {[%emt 0:02:04][%cal Ra4b5]} Qc7 {[%emt 0:02:43]} 14. e5 {[%emt 0:07:05] Active counter play!} Qxe5 {[%emt 0:08:31]} 15. Qxe5 {[%emt 0:00:27]} Bxe5 {[%emt 0:00:06]} 16. axb5 {[%emt 0:00:19]} axb5 {[%emt 0:03:18]} 17. Rxa8+ {[%emt 0:04:33]} Bxa8 {[%emt 0:00:04]} 18. Bc5 {[%emt 0:08:01]} Bxc3 {[%emt 0:20:47]} 19. Ra1 {[%emt 0:07:46]} Bc6 {[%emt 0:00:37]} ({Not} 19... Bxb2 20. Rxa8#) 20. bxc3 {[%emt 0:04:26][%cal Oe2b5] [#] Bxb5! would now be deadly.} Ne4 {[%emt 0:07:29][%csl LRc3,LRc5]} 21. Bb4 {[%emt 0:00:53][%cal Oe2b5] aiming for Bxb5! This pair of bishops is nice.} f5 $1 {[%emt 0:02:26]} 22. f3 {[%emt 0:01:10]} Nf6 {[%emt 0:01:10] [#]} 23. Bxb5 $1 {[%emt 0:00:21]} Kf7 {[%emt 0:00:36]} 24. Bxc6 {[%emt 0:04:57]} dxc6 $11 {[%emt 0:00:07][%mdl 4096] Endgame. KRB-KRN} 25. c4 {[%emt 0:01:46]} e5 {[%emt 0:11:46]} 26. Ra7+ {[%emt 0:09:28]} Kg6 {[%emt 0:00:10]} 27. Bd6 {[%emt 0:00:46]} e4 {[%emt 0:03:04]} 28. Kf2 {[%emt 0:00:44]} Rd8 {[%emt 0:07:19]} 29. c5 {[%emt 0:00:30]} Rd7 {[%emt 0:01:35]} 30. Ra6 {[%emt 0:02:02]} Rb7 {[%emt 0:00:50]} 31. Be5 {[%emt 0:01:04] Against Rb2} Rd7 {[%emt 0:08:53]} (31... Re7 $11 {keeps the balance.} 32. Bxf6 Kxf6) 32. Bd6 {[%emt 0:00:47]} ({White should try} 32. Rxc6 $16 {Threatens to win with Bxf6.} Rd2+ 33. Ke3 Rxc2 34. fxe4 fxe4 35. Bxf6 gxf6 36. Kxe4) 32... Rb7 $1 {[%emt 0:02:16]} 33. Be5 {[%emt 0:00:01]} ({Better is} 33. Ke2 $11) 33... Rd7 {[%emt 0:16:10] Weighted Error Value: White=0.10 (very precise) /Black=0.06 (flawless) .  Mistake:       	White=2     	Black=1      Inaccurate:     	White=1     	---        OK:         	White=13    	Black=8      Best:        	---       	Black=2      Strong:       	---       	Black=2      Brilliant:      	White=1     	---} 1/2-1/2

[Event "3rd Sunway Formentera-A 2024"]
[Site "Formentera"]
[Date "2024.04.12"]
[Round "4.10"]
[White "Sosa, Tomas"]
[Black "Kazarian, Anna-Maja"]
[Result "1/2-1/2"]
[ECO "C03"]
[WhiteElo "2562"]
[BlackElo "2207"]
[Annotator "RC"]
[PlyCount "223"]
[EventDate "2024.04.03"]
[EventType "swiss"]
[EventCountry "ESP"]
[SourceTitle "playchess.com"]
[Source "ChessBase"]
[SourceQuality "1"]
[TimeControl "40/5400+30:1800+30"]

1. e4 {[%emt 0:02:35]} e6 {[%emt 0:00:02]} 2. d4 {[%emt 0:00:43]} d5 {[%emt 0:00:06]} 3. Nd2 {[%emt 0:00:05]} Be7 {[%emt 0:00:16]} 4. e5 {[%emt 0:00:32]} c5 {[%emt 0:00:15]} 5. Qg4 {[%emt 0:00:05]} g5 {[%emt 0:00:38]} 6. Qh5 {[%emt 0:12:35]} cxd4 {[%emt 0:00:50]} 7. Ndf3 {[%emt 0:00:11]} Qc7 {[%emt 0:09:44]} 8. Kd1 {[%emt 0:13:58]} Nc6 {[%emt 0:08:19]} 9. Nxg5 {[%emt 0:00:43]} Bxg5 {[%emt 0:15:39]} 10. Bxg5 {[%emt 0:00:23]} Qxe5 {[%emt 0:00:35]} 11. Nf3 {[%emt 0:00:53]} Qg7 {[%emt 0:00:50]} 12. Bb5 {[%emt 0:07:05]} Bd7 {[%emt 0:05:11]} 13. Re1 {[%emt 0:03:40]} Qg6 {[%emt 0:07:03]} 14. Qh4 {[%emt 0:08:16]} f6 {[%emt 0:04:52]} 15. Bxc6 {[%emt 0:03:37]} bxc6 {[%emt 0:02:05]} 16. Qxd4 {[%emt 0:00:14]} c5 {[%emt 0:04:19]} 17. Qxd5 {[%emt 0:05:41]} Rd8 {[%emt 0:00:17]} 18. Bd2 {[%emt 0:01:08]} Qxg2 {[%emt 0:01:52]} 19. Ba5 {[%emt 0:02:15]} Rc8 {[%emt 0:09:47]} 20. Qd3 {[%emt 0:04:26]} Qxf2 {[%emt 0:07:24]} 21. Nd2 {[%emt 0:10:51]} Qd4 {[%emt 0:04:38]} 22. Qg3 {[%emt 0:01:46]} Nh6 {[%emt 0:03:53]} 23. Bc3 {[%emt 0:06:14]} Qg4+ {[%emt 0:00:18]} 24. Qxg4 {[%emt 0:00:05]} Nxg4 {[%emt 0:00:03]} 25. Ne4 {[%emt 0:00:07]} Bc6 {[%emt 0:07:36]} 26. Nd6+ {[%emt 0:01:46]} Ke7 {[%emt 0:00:04]} 27. Nxc8+ {[%emt 0:00:05]} Rxc8 {[%emt 0:00:03]} 28. Rg1 {[%emt 0:02:20]} e5 {[%emt 0:03:16]} 29. Ke2 {[%emt 0:04:05]} Nxh2 {[%emt 0:02:00]} 30. Rg7+ {[%emt 0:00:19]} Ke6 {[%emt 0:00:10]} 31. Rxh7 {[%emt 0:00:13]} Ng4 {[%emt 0:00:24]} 32. Rxa7 {[%emt 0:00:36]} Rh8 {[%emt 0:00:20]} 33. Re1 {[%emt 0:03:23]} f5 {[%emt 0:01:10]} 34. Ra6 {[%emt 0:00:37]} Kd5 {[%emt 0:02:56]} 35. Rd1+ {[%emt 0:02:42]} Ke4 {[%emt 0:00:04]} 36. Rxc6 {[%emt 0:00:04]} Rh2+ {[%emt 0:00:05]} 37. Ke1 {[%emt 0:00:19]} Ne3 {[%emt 0:01:23]} 38. Bxe5 {[%emt 0:03:44]} Rh1+ {[%emt 0:00:31]} 39. Ke2 {[%emt 0:00:10]} Nxd1 {[%emt 0:00:08]} 40. Re6 {[%emt 0:00:00]} f4 {[%emt 0:00:00]} 41. Bc7+ {[%emt 0:09:34]} Kf5 {[%emt 0:05:00]} 42. Re5+ {[%emt 0:00:16]} Kg4 {[%emt 0:00:50]} 43. Re4 {[%emt 0:00:16]} Nxb2 {[%emt 0:00:30]} 44. Rxf4+ {[%emt 0:00:09]} Kg5 {[%emt 0:00:08]} 45. Rf3 {[%emt 0:03:29]} Rh7 {[%emt 0:06:10]} 46. Bd6 {[%emt 0:04:21]} Ra7 {[%emt 0:04:27]} 47. a3 {[%emt 0:08:40]} Ra5 {[%emt 0:01:00]} 48. Rc3 {[%emt 0:01:50]} Na4 {[%emt 0:00:29]} 49. Rb3 {[%emt 0:00:14]} Kf5 {[%emt 0:02:41]} 50. Kd3 {[%emt 0:00:46]} Ke6 {[%emt 0:00:41]} 51. Bg3 {[%emt 0:05:14]} Kd5 {[%emt 0:00:47]} 52. Rb8 {[%emt 0:01:29]} c4+ {[%emt 0:01:18]} 53. Kd2 {[%emt 0:00:47]} Nc5 {[%emt 0:05:12]} 54. Rd8+ {[%emt 0:00:03]} Kc6 {[%emt 0:00:26]} 55. Rc8+ {[%emt 0:00:03]} Kd5 {[%emt 0:00:11]} 56. Rd8+ {[%emt 0:00:06]} Kc6 {[%emt 0:00:05]} 57. Rc8+ {[%emt 0:00:05]} Kd5 {[%emt 0:00:11]} 58. Kc3 {[%emt 0:01:10]} Rxa3+ {[%emt 0:04:57]} 59. Kb4 {[%emt 0:00:02]} Rxg3 {[%emt 0:00:06]} 60. Rxc5+ {[%emt 0:00:05]} Kd6 {[%emt 0:00:05]} 61. Rxc4 {[%emt 0:00:07]} Rg1 {[%emt 0:02:58]} 62. Kb5 {[%emt 0:00:35]} Rb1+ {[%emt 0:00:19]} 63. Rb4 {[%emt 0:00:06]} Rc1 {[%emt 0:00:06]} 64. Rd4+ {[%emt 0:01:12]} Kc7 {[%emt 0:01:32]} 65. c4 {[%emt 0:00:35]} Rb1+ {[%emt 0:00:15]} 66. Kc5 {[%emt 0:00:06]} Rh1 {[%emt 0:00:26]} 67. Rd5 {[%emt 0:00:05]} Rg1 {[%emt 0:00:36]} 68. Rh5 {[%emt 0:00:06]} Rg7 {[%emt 0:00:30]} 69. Kb5 {[%emt 0:00:04]} Rf7 {[%emt 0:01:10]} 70. Rh6 {[%emt 0:00:29]} Rg7 {[%emt 0:01:01]} 71. c5 {[%emt 0:00:13]} Kb7 {[%emt 0:02:04]} 72. Rb6+ {[%emt 0:00:18]} Kc7 {[%emt 0:00:04]} 73. Ra6 {[%emt 0:00:07]} Rg1 {[%emt 0:01:06]} 74. Ra7+ {[%emt 0:00:36]} Kb8 {[%emt 0:00:05]} 75. Rd7 {[%emt 0:00:35]} Kc8 {[%emt 0:00:24]} 76. Kc6 {[%emt 0:01:12]} Rg6+ {[%emt 0:00:43]} 77. Rd6 {[%emt 0:00:04]} Rg7 {[%emt 0:00:13]} 78. Rh6 {[%emt 0:00:47]} Rc7+ {[%emt 0:00:09]} 79. Kb5 {[%emt 0:00:23]} Rb7+ {[%emt 0:00:09]} 80. Rb6 {[%emt 0:00:58]} Rg7 {[%emt 0:00:19]} 81. Ra6 {[%emt 0:00:11]} Rh7 {[%emt 0:00:43]} 82. Kb6 {[%emt 0:00:54]} Rb7+ {[%emt 0:00:06]} 83. Kc6 {[%emt 0:00:04]} Rc7+ {[%emt 0:00:01]} 84. Kd5 {[%emt 0:00:29]} Rd7+ {[%emt 0:00:06]} 85. Rd6 {[%emt 0:00:05]} Rh7 {[%emt 0:00:08]} 86. Kc6 {[%emt 0:00:50]} Rc7+ {[%emt 0:00:02]} 87. Kb5 {[%emt 0:00:22]} Rb7+ {[%emt 0:00:03]} 88. Kc4 {[%emt 0:00:16]} Rg7 {[%emt 0:00:15]} 89. Ra6 {[%emt 0:00:24]} Rh7 {[%emt 0:01:03]} 90. Rg6 {[%emt 0:00:09]} Kc7 {[%emt 0:00:45]} 91. Kb5 {[%emt 0:00:07]} Kc8 {[%emt 0:00:16]} 92. Rc6+ {[%emt 0:05:15]} Kb7 {[%emt 0:00:12]} 93. Rf6 {[%emt 0:00:56]} Kc8 {[%emt 0:00:04]} 94. Kb6 {[%emt 0:00:41]} Rb7+ {[%emt 0:00:03]} 95. Kc6 {[%emt 0:00:38]} Rc7+ {[%emt 0:00:02]} 96. Kd5 {[%emt 0:00:11]} Rd7+ {[%emt 0:00:01]} 97. Kc4 {[%emt 0:00:46]} Rh7 {[%emt 0:00:10]} 98. Kb5 {[%emt 0:00:32]} Rb7+ {[%emt 0:00:03]} 99. Ka6 {[%emt 0:00:11]} Rh7 {[%emt 0:01:27]} 100. Rc6+ {[%emt 0:00:29]} Kb8 {[%emt 0:00:20]} 101. Rb6+ {[%emt 0:00:40]} Kc8 {[%emt 0:00:10]} 102. Rb5 {[%emt 0:00:36]} Rc7 {[%emt 0:00:39]} 103. Ka5 {[%emt 0:00:24]} Ra7+ {[%emt 0:00:51]} 104. Kb4 {[%emt 0:00:05]} Rb7 {[%emt 0:00:46]} 105. Rb6 {[%emt 0:00:15]} Rxb6+ {[%emt 0:00:22]} 106. cxb6 {[%emt 0:00:05]} Kb7 {[%emt 0:00:02]} 107. Kb5 {[%emt 0:00:08]} Kb8 {[%emt 0:00:03]} 108. Kc5 {[%emt 0:00:07]} Kb7 {[%emt 0:00:06]} 109. Kb5 {[%emt 0:00:03]} Kb8 {[%emt 0:00:02]} 110. Kc6 {[%emt 0:00:06]} Kc8 {[%emt 0:00:03]} 111. b7+ {[%emt 0:00:04]} Kb8 {[%emt 0:00:02]} 112. Kb6 1/2-1/2